fUSD/lending_fUSD_20260217
["ID","MTS","AMOUNT","RATE_DAILY","PERIOD"]
[405865981,1771371046851,-2378.0,0.00016986,2]
[405865982,1771371046862,-526.92297095,0.0001699,2]
[405865983,1771371046872,-300.0,0.00017,2]
[405865984,1771371046881,-1034718.3065828,0.00017,2]
[405865985,1771371046891,-2000.0,0.00017,2]
[405865986,1771371046900,-2378.0,0.00017041,2]
[405865987,1771371046910,-1000.0,0.00017051,2]
[405865988,1771371046920,-166.11141928,0.00017056,2]
[405865989,1771371046930,-1000.0,0.00017088,2]
[405865990,1771371046939,-2378.0,0.00017096,2]
[405865991,1771371046948,-1471.37769193,0.00017096,2]
[405865992,1771371046958,-500.0,0.00017098,2]
[405865993,1771371046967,-1013.23,0.00017098,2]
[405865994,1771371046977,-536.56841648,0.00017098,2]
[405865995,1771371046986,-546.97,0.00017098,2]
[405865996,1771371046995,-500.0,0.00017098,2]
[405865997,1771371047004,-1479.1,0.00017098,2]
[405865998,1771371047014,-500.0,0.00017098,2]
[405865999,1771371047023,-1546.47,0.00017098,2]
[405866000,1771371047032,-568.38,0.00017098,2]
[405866001,1771371047042,-568.38,0.00017098,2]
[405866002,1771371047051,-568.38,0.00017098,2]
[405866003,1771371047060,-568.38,0.00017098,2]
[405866004,1771371047069,-568.6,0.00017098,2]
[405866005,1771371047079,-516.5,0.00017098,2]
[405866006,1771371047088,-500.0,0.00017098,2]
[405866007,1771371047097,-500.0,0.00017098,2]
[405866008,1771371047106,-500.0,0.00017098,2]
[405866009,1771371047116,-500.0,0.00017098,2]
[405866010,1771371047126,-500.0,0.00017098,2]
[405866011,1771371047135,-500.0,0.00017098,2]
[405866012,1771371047144,-500.0,0.00017098,2]
[405866013,1771371047154,-277.35679052,0.00017099,2]
[405866014,1771371047163,-151.0,0.00017099,2]
[405866015,1771371047173,-156.587,0.00017099,2]
[405866016,1771371047183,-162.380719,0.00017099,2]
[405866017,1771371047192,-159.19814613,0.00017099,2]
[405866018,1771371047202,-500.0,0.00017099,2]
[405866019,1771371047211,-500.0,0.00017099,2]
[405866020,1771371047220,-500.0,0.00017099,2]
[405866021,1771371047230,-500.0,0.00017099,2]
[405866022,1771371047239,-500.0,0.00017099,2]
[405866023,1771371047248,-500.0,0.00017099,2]
[405866024,1771371047257,-500.0,0.00017099,2]
[405866025,1771371047267,-500.0,0.00017099,2]
[405866026,1771371047276,-500.0,0.00017099,2]
[405866027,1771371047286,-500.0,0.00017099,2]
[405866028,1771371047296,-500.0,0.00017099,2]
[405866029,1771371047305,-500.0,0.00017099,2]
[405866030,1771371047315,-500.0,0.00017099,2]
[405866031,1771371047324,-500.0,0.00017099,2]
[405866032,1771371047333,-500.0,0.00017099,2]
[405866033,1771371047342,-500.0,0.00017099,2]
[405866034,1771371047352,-500.0,0.00017099,2]
[405866035,1771371047363,-500.0,0.00017099,2]
[405866036,1771371047372,-500.0,0.00017099,2]
[405866037,1771371047381,-500.0,0.00017099,2]
[405866038,1771371047391,-1013.23,0.00017099,2]
[405866039,1771371047399,-546.97,0.00017099,2]
[405866040,1771371047408,-500.0,0.00017099,2]
[405866041,1771371047418,-1479.1,0.00017099,2]
[405866042,1771371047427,-500.0,0.00017099,2]
[405866043,1771371047437,-1546.47,0.00017099,2]
[405866044,1771371047446,-516.5,0.00017099,2]
[405866045,1771371047455,-500.0,0.00017099,2]
[405866046,1771371047465,-500.0,0.00017099,2]
[405866047,1771371047474,-500.0,0.00017099,2]
[405866048,1771371047483,-500.0,0.00017099,2]
[405866049,1771371047492,-500.0,0.00017099,2]
[405866050,1771371047504,-500.0,0.00017099,2]
[405866051,1771371047513,-500.0,0.00017099,2]
[405866052,1771371047523,-150.0,0.000171,2]
[405866053,1771371047532,-196837.22809,0.000171,2]
[405866054,1771371047542,-820.0,0.000171,2]
[405866055,1771371047552,-152.74609945,0.000171,2]
[405866056,1771371047561,-150.0,0.00017132,2]
[405866057,1771371047571,-2378.0,0.0001715,2]
[405866058,1771371047584,-1740.67806815,0.0001716,2]
[405866059,1771371047593,-1471.37769193,0.00017178,2]
[405866060,1771371047603,-3354.94878458,0.00017185,2]
[405866061,1771371047612,-647.0,0.0001719,2]
[405866062,1771371047622,-1000.0,0.00017191,2]
[405866063,1771371047631,-150.0,0.00017203,2]
[405866064,1771371047641,-150.0,0.00017212,2]
[405866065,1771371047651,-1000.0,0.00017222,2]
[405866066,1771371047660,-1471.37769193,0.00017233,2]
[405866067,1771371047670,-150.0,0.00017237,2]
[405866068,1771371047679,-1000.0,0.0001726,2]
[405866069,1771371047689,-1000.0,0.00017283,2]
[405866070,1771371047698,-1000.0,0.00017291,2]
[405866071,1771371047707,-150.0,0.00017298,2]
[405866072,1771371047717,-1471.37769193,0.00017315,2]
[405866073,1771371047726,-167.32,0.00017335,2]
[405866074,1771371047736,-1000.0,0.00017337,2]
[405866075,1771371047745,-150.0,0.00017365,2]
[405866076,1771371047755,-1471.37769193,0.0001737,2]
[405866077,1771371047764,-167.32,0.00017388,2]
[405866078,1771371047773,-1000.0,0.00017391,2]
[405866079,1771371047782,-150.0,0.000174,2]
[405866080,1771371047792,-2555.4951848,0.000174,5]
[405866081,1771371047802,-1000.0,0.00017403,2]
[405866082,1771371047811,-150.248,0.00017413,2]
[405866083,1771371047820,-1275.0,0.00017413,2]
[405866084,1771371047830,-1220.627,0.00017413,2]
[405866085,1771371047839,-1338.0,0.00017413,2]
[405866086,1771371047849,-2452.0,0.00017413,2]
[405866087,1771371047858,-996.49958588,0.00017428,2]
[405866088,1771371047867,-854.53335357,0.00017439,2]
[405866089,1771371047877,-471.0,0.00017441,2]
[405866090,1771371047887,-150.0,0.00017442,2]
[405866091,1771371047896,-2000.0,0.00017452,7]
[405866092,1771371047905,-1471.37769193,0.00017452,2]
[405866093,1771371047915,-1000.0,0.00017479,2]
[405866094,1771371047924,-150.0,0.00017491,2]
[405866095,1771371047934,-1000.0,0.00017492,2]
[405866096,1771371047944,-1000.0,0.00017494,2]
[405866097,1771371047953,-400.0,0.000175,6]
[405866098,1771371047963,-1000.0,0.00017502,2]
[405866099,1771371047972,-1471.37769193,0.00017507,2]
[405866100,1771371047982,-150.0,0.00017523,2]
[405866101,1771371047992,-1000.0,0.00017534,2]
[405866102,1771371048001,-150.0,0.00017571,2]
[405866103,1771371048011,-1000.0,0.00017582,2]
[405866104,1771371048021,-1000.0,0.00017582,2]
[405866105,1771371048030,-1000.0,0.00017583,2]
[405866106,1771371048039,-471.0,0.00017586,2]
[405866107,1771371048049,-1000.0,0.00017589,2]
[405866108,1771371048059,-1471.37769193,0.00017589,2]
[405866109,1771371048068,-1000.0,0.00017594,2]
[405866110,1771371048077,-1000.0,0.00017596,2]
[405866111,1771371048086,-400.0,0.000176,6]
[405866112,1771371048096,-150.0,0.00017603,2]
[405866113,1771371048106,-1000.0,0.00017614,2]
[405866114,1771371048115,-350.0,0.00017635,3]
[405866115,1771371048125,-10846.14923654,0.0001764,2]
[405866116,1771371048135,-1471.37769193,0.00017644,2]
[405866117,1771371048144,-287.61899177,0.00017647,2]
[405866118,1771371048154,-2835.0,0.0001768,2]
[405866119,1771371048165,-150.0,0.000177,2]
[405866120,1771371048175,-784.32813885,0.000177,2]
[405866121,1771371048184,-400.0,0.000177,6]
[405866122,1771371048194,-403.0,0.000177,5]
[405866123,1771371048203,-150.0,0.00017701,2]
[405866124,1771371048213,-471.0,0.00017712,2]
[405866125,1771371048222,-500.0,0.00017726,7]
[405866126,1771371048231,-1471.37769193,0.00017726,2]
[405866127,1771371048240,-2004.41635969,0.0001773,2]
[405866128,1771371048250,-471.0,0.00017754,2]
[405866129,1771371048262,-5888.0,0.00017755,2]
[405866130,1771371048271,-164.2,0.00017761,2]
[405866131,1771371048280,-150.0,0.00017761,2]
[405866132,1771371048290,-150.0,0.00017763,2]
[405866133,1771371048299,-1000.0,0.00017775,2]
[405866134,1771371048309,-1000.0,0.00017777,2]
[405866135,1771371048318,-350.0,0.00017779,2]
[405866136,1771371048328,-258.44,0.0001778,2]
[405866137,1771371048338,-1471.37769193,0.00017781,2]
[405866138,1771371048347,-164.2,0.00017784,2]
[405866139,1771371048356,-1000.0,0.00017786,2]
[405866140,1771371048365,-400.0,0.000178,6]
[405866141,1771371048375,-1000.0,0.00017803,2]
[405866142,1771371048385,-444.64,0.00017808,2]
[405866143,1771371048394,-500.0,0.00017808,2]
[405866144,1771371048474,-500.0,0.00017808,2]
[405866145,1771371048484,-428.28311124,0.00017808,2]
[405866146,1771371048494,-500.0,0.00017808,2]
[405866147,1771371048505,-500.0,0.00017808,2]
[405866148,1771371048515,-500.0,0.00017808,2]
[405866149,1771371048524,-500.0,0.00017808,2]
[405866150,1771371048533,-500.0,0.00017808,2]
[405866151,1771371048543,-500.0,0.00017808,2]
[405866152,1771371048552,-500.0,0.00017808,2]
[405866153,1771371048561,-800.0,0.00017808,2]
[405866154,1771371048569,-1000.0,0.00017808,2]
[405866155,1771371048579,-250.0,0.00017808,20]
[405866156,1771371048588,-250.0,0.00017808,20]
[405866157,1771371048597,-250.0,0.00017808,20]
[405866158,1771371048606,-250.0,0.00017808,20]
[405866159,1771371048615,-250.0,0.00017808,20]
[405866160,1771371048625,-250.0,0.00017808,20]
[405866161,1771371048634,-250.0,0.00017808,20]
[405866162,1771371048643,-2000.0,0.0001782,2]
[405866163,1771371048652,-2000.0,0.0001782,2]
[405866164,1771371048661,-1000.0,0.00017824,2]
[405866165,1771371048670,-1000.0,0.00017833,2]
[405866166,1771371048679,-150.0,0.00017846,2]
[405866167,1771371048688,-471.0,0.0001785,2]
[405866168,1771371048697,-200.0,0.00017855,2]
[405866169,1771371048707,-500.0,0.00017856,2]
[405866170,1771371048715,-200.0,0.00017856,2]
[405866171,1771371048724,-200.0,0.00017856,2]
[405866172,1771371048734,-1471.37769193,0.00017863,2]
[405866173,1771371048743,-471.0,0.00017889,2]
[405866174,1771371048752,-1013.23,0.00017899,2]
[405866175,1771371048761,-1013.23,0.00017899,2]
[405866176,1771371048770,-1013.23,0.00017899,2]
[405866177,1771371048781,-1013.23,0.00017899,2]
[405866178,1771371048790,-546.97,0.00017899,2]
[405866179,1771371048799,-546.97,0.00017899,2]
[405866180,1771371048808,-546.97,0.00017899,2]
[405866181,1771371048817,-546.97,0.00017899,2]
[405866182,1771371048826,-500.0,0.00017899,2]
[405866183,1771371048836,-500.0,0.00017899,2]
[405866184,1771371048845,-500.0,0.00017899,2]
[405866185,1771371048854,-500.0,0.00017899,2]
[405866186,1771371048863,-1479.1,0.00017899,2]
[405866187,1771371048872,-1479.1,0.00017899,2]
[405866188,1771371048882,-1479.1,0.00017899,2]
[405866189,1771371048891,-1479.1,0.00017899,2]
[405866190,1771371048900,-500.0,0.00017899,2]
[405866191,1771371048909,-500.0,0.00017899,2]
[405866192,1771371048920,-500.0,0.00017899,2]
[405866193,1771371048929,-500.0,0.00017899,2]
[405866194,1771371048939,-1546.47,0.00017899,2]
[405866195,1771371048948,-1546.47,0.00017899,2]
[405866196,1771371048958,-1546.47,0.00017899,2]
[405866197,1771371048967,-1546.47,0.00017899,2]
[405866198,1771371048977,-516.5,0.00017899,2]
[405866199,1771371048986,-516.5,0.00017899,2]
[405866200,1771371048995,-516.5,0.00017899,2]
[405866201,1771371049004,-516.5,0.00017899,2]
[405866202,1771371049013,-500.0,0.00017899,2]
[405866203,1771371049023,-500.0,0.00017899,2]
[405866204,1771371049032,-494.24526323,0.00017899,2]
[405866205,1771371049042,-191.17661539,0.00017899,2]
[405866206,1771371049051,-500.0,0.00017899,2]
[405866207,1771371049060,-500.0,0.00017899,2]
[405866208,1771371049070,-500.0,0.00017899,2]
[405866209,1771371049079,-500.0,0.00017899,2]
[405866210,1771371049088,-505.58518338,0.00017899,2]
[405866211,1771371049097,-500.0,0.00017899,2]
[405866212,1771371049107,-474.03942024,0.00017899,2]
[405866213,1771371049116,-500.0,0.00017899,2]
[405866214,1771371049125,-500.0,0.00017899,2]
[405866215,1771371049134,-321.35543779,0.00017899,2]
[405866216,1771371049144,-500.0,0.00017899,2]
[405866217,1771371049153,-500.0,0.00017899,2]
[405866218,1771371049162,-500.0,0.00017899,2]
[405866219,1771371049172,-1000.0,0.00017899,2]
[405866220,1771371049182,-1000.0,0.00017899,2]
[405866221,1771371049192,-1000.0,0.00017899,2]
[405866222,1771371049201,-1000.0,0.00017899,2]
[405866223,1771371049211,-1000.0,0.00017899,2]
[405866224,1771371049220,-1000.0,0.00017899,2]
[405866225,1771371049230,-1000.0,0.00017899,2]
[405866226,1771371049240,-1000.0,0.00017899,2]
[405866227,1771371049249,-150.0,0.000179,2]
[405866228,1771371049258,-159.75009324,0.000179,2]
[405866229,1771371049267,-150.0,0.000179,2]
[405866230,1771371049276,-150.0,0.000179,2]
[405866231,1771371049286,-150.0,0.000179,2]
[405866232,1771371049295,-25000.0,0.000179,3]
[405866233,1771371049305,-150.0,0.000179,2]
[405866234,1771371049314,-332.0066979,0.000179,2]
[405866235,1771371049325,-915.0,0.000179,6]
[405866236,1771371049334,-3360.30504385,0.000179,2]
[405866237,1771371049344,-1265.07577451,0.000179,2]
[405866238,1771371049354,-37474.45314742,0.000179,2]
[405866239,1771371049364,-4326.33066919,0.000179,2]
[405866240,1771371049373,-471.0,0.00017913,2]
[405866241,1771371049382,-150.0,0.00017928,2]
[405866242,1771371049392,-150.0,0.00017937,2]
[405866243,1771371049401,-500.0,0.00017945,3]
[405866244,1771371049411,-174.61919141,0.00017945,3]
[405866245,1771371049420,-181.08010149,0.00017945,3]
[405866246,1771371049430,-187.78006525,0.00017945,3]
[405866247,1771371049439,-250.0,0.00017945,3]
[405866248,1771371049449,-194.72792766,0.00017945,3]
[405866249,1771371049458,-250.0,0.00017945,3]
[405866250,1771371049467,-250.0,0.00017945,3]
[405866251,1771371049477,-201.93286099,0.00017945,3]
[405866252,1771371049486,-3000.0,0.00017945,3]
[405866253,1771371049496,-250.0,0.00017945,3]
[405866254,1771371049509,-250.0,0.00017945,3]
[405866255,1771371049519,-250.0,0.00017945,3]
[405866256,1771371049527,-209.40437684,0.00017945,3]
[405866257,1771371049537,-3000.0,0.00017945,3]
[405866258,1771371049547,-250.0,0.00017945,3]
[405866259,1771371049556,-250.0,0.00017945,3]
[405866260,1771371049565,-250.0,0.00017945,3]
[405866261,1771371049575,-217.15233878,0.00017945,3]
[405866262,1771371049584,-3000.0,0.00017945,3]
[405866263,1771371049593,-250.0,0.00017945,3]
[405866264,1771371049603,-250.0,0.00017945,3]
[405866265,1771371049611,-250.0,0.00017945,3]
[405866266,1771371049621,-225.18697532,0.00017945,3]
[405866267,1771371049630,-3000.0,0.00017945,3]
[405866268,1771371049640,-250.0,0.00017945,3]
[405866269,1771371049649,-250.0,0.00017945,3]
[405866270,1771371049658,-250.0,0.00017945,3]
[405866271,1771371049667,-3000.0,0.00017945,3]
[405866272,1771371049677,-250.0,0.00017945,3]
[405866273,1771371049686,-250.0,0.00017945,3]
[405866274,1771371049695,-233.51889341,0.00017945,3]
[405866275,1771371049704,-250.0,0.00017945,3]
[405866276,1771371049713,-3000.0,0.00017945,3]
[405866277,1771371049722,-250.0,0.00017945,3]
[405866278,1771371049731,-250.0,0.00017945,3]
[405866279,1771371049740,-242.15909246,0.00017945,3]
[405866280,1771371049749,-250.0,0.00017945,3]
[405866281,1771371049759,-3000.0,0.00017945,3]
[405866282,1771371049768,-250.0,0.00017945,3]
[405866283,1771371049777,-250.0,0.00017945,3]
[405866284,1771371049786,-184.99591854,0.00017945,3]
[405866285,1771371049795,-251.11897888,0.00017945,3]
[405866286,1771371049804,-250.0,0.00017945,3]
[405866287,1771371049814,-2570.81608438,0.00017945,3]
[405866288,1771371049823,-250.0,0.00017945,3]
[405866289,1771371049832,-260.4103811,0.00017945,3]
[405866290,1771371049841,-250.0,0.00017945,3]
[405866291,1771371049851,-250.0,0.00017945,3]
[405866292,1771371049860,-250.0,0.00017945,3]
[405866293,1771371049870,-270.0455652,0.00017945,3]
[405866294,1771371049880,-250.0,0.00017945,3]
[405866295,1771371049889,-250.0,0.00017945,3]
[405866296,1771371049899,-250.0,0.00017945,3]
[405866297,1771371049909,-280.03725112,0.00017945,3]
[405866298,1771371049918,-250.0,0.00017945,3]
[405866299,1771371049928,-290.39862941,0.00017945,3]
[405866300,1771371049938,-299.40346672,0.00017945,3]
[405866301,1771371049947,-301.1433787,0.00017945,3]
[405866302,1771371049956,-151.0,0.00017945,3]
[405866303,1771371049965,-151.0,0.00017945,3]
[405866304,1771371049974,-743.50770149,0.00017945,3]
[405866305,1771371049984,-151.0,0.00017945,3]
[405866306,1771371049994,-771.01748645,0.00017945,3]
[405866307,1771371050004,-721.12765535,0.00017945,3]
[405866308,1771371050013,-151.0,0.00017945,3]
[405866309,1771371050022,-799.54513345,0.00017945,3]
[405866310,1771371050032,-747.8093786,0.00017945,3]
[405866311,1771371050041,-151.0,0.00017945,3]
[405866312,1771371050051,-500.0,0.00017945,3]
[405866313,1771371050060,-775.47832561,0.00017945,3]
[405866314,1771371050070,-829.12830338,0.00017945,3]
[405866315,1771371050080,-151.0,0.00017945,3]
[405866316,1771371050090,-804.17102365,0.00017945,3]
[405866317,1771371050101,-171.52852621,0.00017945,3]
[405866318,1771371050110,-500.0,0.00017945,3]
[405866319,1771371050120,-151.0,0.00017945,3]
[405866320,1771371050129,-833.92535153,0.00017945,3]
[405866321,1771371050139,-500.0,0.00017945,3]
[405866322,1771371050148,-151.0,0.00017945,3]
[405866323,1771371050158,-864.78058953,0.00017945,3]
[405866324,1771371050167,-500.0,0.00017945,3]
[405866325,1771371050176,-151.0,0.00017945,3]
[405866326,1771371050186,-896.77747135,0.00017945,3]
[405866327,1771371050195,-500.0,0.00017945,3]
[405866328,1771371050206,-151.0,0.00017945,3]
[405866329,1771371050215,-500.0,0.00017945,3]
[405866330,1771371050224,-500.0,0.00017945,3]
[405866331,1771371050233,-929.95823779,0.00017945,3]
[405866332,1771371050242,-151.0,0.00017945,3]
[405866333,1771371050251,-500.0,0.00017945,3]
[405866334,1771371050261,-500.0,0.00017945,3]
[405866335,1771371050270,-964.36669259,0.00017945,3]
[405866336,1771371050280,-431.2849758,0.00017945,3]
[405866337,1771371050289,-151.0,0.00017945,3]
[405866338,1771371050299,-500.0,0.00017945,3]
[405866339,1771371050308,-500.0,0.00017945,3]
[405866340,1771371050318,-151.0,0.00017945,3]
[405866341,1771371050327,-500.0,0.00017945,3]
[405866342,1771371050336,-1000.04826021,0.00017945,3]
[405866343,1771371050346,-500.0,0.00017945,3]
[405866344,1771371050354,-151.0,0.00017945,3]
[405866345,1771371050363,-1037.05004584,0.00017945,3]
[405866346,1771371050373,-500.0,0.00017945,3]
[405866347,1771371050382,-500.0,0.00017945,3]
[405866348,1771371050391,-151.0,0.00017945,3]
[405866349,1771371050400,-500.0,0.00017945,3]
[405866350,1771371050410,-500.0,0.00017945,3]
[405866351,1771371050418,-500.0,0.00017945,3]
[405866352,1771371050427,-500.0,0.00017945,3]
[405866353,1771371050437,-500.0,0.00017945,3]
[405866354,1771371050446,-500.0,0.00017945,3]
[405866355,1771371050455,-200.0,0.00017945,3]
[405866356,1771371050464,-174.5920753,0.00017945,3]
[405866357,1771371050473,-200.0,0.00017945,3]
[405866358,1771371050482,-500.0,0.00017945,3]
[405866359,1771371050491,-200.0,0.00017945,3]
[405866360,1771371050504,-200.0,0.00017945,3]
[405866361,1771371050513,-151.0,0.00017945,3]
[405866362,1771371050522,-151.0,0.00017945,3]
[405866363,1771371050531,-151.0,0.00017945,3]
[405866364,1771371050541,-151.0,0.00017945,3]
[405866365,1771371050550,-250.0,0.00017945,3]
[405866366,1771371050561,-151.0,0.00017945,3]
[405866367,1771371050570,-250.0,0.00017945,3]
[405866368,1771371050580,-151.0,0.00017945,3]
[405866369,1771371050590,-151.0,0.00017945,3]
[405866370,1771371050599,-250.0,0.00017945,3]
[405866371,1771371050608,-151.0,0.00017945,3]
[405866372,1771371050621,-250.0,0.00017945,3]
[405866373,1771371050630,-151.0,0.00017945,3]
[405866374,1771371050639,-250.0,0.00017945,3]
[405866375,1771371050648,-250.0,0.00017945,3]
[405866376,1771371050657,-151.0,0.00017945,3]
[405866377,1771371050667,-250.0,0.00017945,3]
[405866378,1771371050676,-151.0,0.00017945,3]
[405866379,1771371050685,-151.0,0.00017945,3]
[405866380,1771371050694,-250.0,0.00017945,3]
[405866381,1771371050703,-151.0,0.00017945,3]
[405866382,1771371050713,-250.0,0.00017945,3]
[405866383,1771371050722,-151.0,0.00017945,3]
[405866384,1771371050731,-250.0,0.00017945,3]
[405866385,1771371050740,-151.0,0.00017945,3]
[405866386,1771371050750,-250.0,0.00017945,3]
[405866387,1771371050760,-151.0,0.00017945,3]
[405866388,1771371050769,-693.3919763,0.00017945,3]
[405866389,1771371050778,-151.0,0.00017945,3]
[405866390,1771371050788,-719.04747942,0.00017945,3]
[405866391,1771371050797,-151.0,0.00017945,3]
[405866392,1771371050807,-200.0,0.00017945,3]
[405866393,1771371050816,-745.65223616,0.00017945,3]
[405866394,1771371050825,-151.0,0.00017945,3]
[405866395,1771371050836,-200.0,0.00017945,3]
[405866396,1771371050845,-773.2413689,0.00017945,3]
[405866397,1771371050854,-151.0,0.00017945,3]
[405866398,1771371050865,-801.85129955,0.00017945,3]
[405866399,1771371050875,-151.0,0.00017945,3]
[405866400,1771371050884,-831.51979763,0.00017945,3]
[405866401,1771371050894,-151.0,0.00017945,3]
[405866402,1771371050904,-862.28603014,0.00017945,3]
[405866403,1771371050914,-894.19061326,0.00017945,3]
[405866404,1771371050923,-927.27566595,0.00017945,3]
[405866405,1771371050933,-961.58486559,0.00017945,3]
[405866406,1771371050943,-997.16350561,0.00017945,3]
[405866407,1771371050952,-250.0,0.00017945,3]
[405866408,1771371050961,-250.0,0.00017945,3]
[405866409,1771371050971,-250.0,0.00017945,3]
[405866410,1771371050980,-250.0,0.00017945,3]
[405866411,1771371050990,-250.0,0.00017945,3]
[405866412,1771371051000,-250.0,0.00017945,3]
[405866413,1771371051010,-250.0,0.00017945,3]
[405866414,1771371051020,-250.0,0.00017945,3]
[405866415,1771371051030,-250.0,0.00017945,3]
[405866416,1771371051040,-250.0,0.00017945,3]
[405866417,1771371051050,-250.0,0.00017945,3]
[405866418,1771371051060,-151.0,0.00017945,2]
[405866419,1771371051070,-311.844149,0.00017945,2]
[405866420,1771371051080,-311.844149,0.00017945,2]
[405866421,1771371051089,-1000.0,0.0001796,2]
[405866422,1771371051099,-150.0,0.00017967,2]
[405866423,1771371051110,-188.0,0.00017969,2]
[405866424,1771371051120,-500.0,0.00017982,2]
[405866425,1771371051130,-1000.0,0.00017986,2]
[405866426,1771371051140,-500.0,0.0001799,2]
[405866427,1771371051149,-500.0,0.0001799,2]
[405866428,1771371051159,-576.40340077,0.0001799,2]
[405866429,1771371051168,-1916.6734419,0.00017993,2]
[405866430,1771371051178,-213969.7776569,0.00017993,2]
[405866431,1771371051187,-46303.87866969,0.00017993,2]
[405866432,1771371051822,-865.01,0.00017205,2]
[405866433,1771371051834,-1173.00657988,0.00017205,2]
[405866434,1771371053127,-170.20434449,0.00013873,2]
[405866435,1771371053137,-339.98342012,0.00017205,2]
[405866436,1771371053147,-2378.0,0.0001726,2]
[405866437,1771371053156,-2378.0,0.00017315,2]
[405866438,1771371053165,-2378.0,0.0001737,2]
[405866439,1771371053174,-199.48660194,0.00017413,2]
[405866440,1771371053243,-600.55340706,0.00017413,2]
[405866441,1771371053254,-973.00923496,0.00017413,2]
[405866461,1771372023649,-208.0,6.7e-05,2]
[405866462,1771372023679,-250.0,6.75e-05,2]
[405866463,1771372024055,-844.38049698,6.797e-05,2]
[405866464,1771372024324,-10000.01,6.797e-05,2]
[405866465,1771372032463,-10000.01,6.797e-05,2]
[405866466,1771372032595,-10000.01,6.797e-05,2]
[405866467,1771372075837,1036.568,6e-05,2]
[405866475,1771372231535,-953.94191315,6.7e-05,2]
[405866476,1771372231591,-46.05808685,6.7e-05,2]
[405866477,1771372231600,-300.0,6.7e-05,2]
[405866478,1771372231610,-150.0,6.77e-05,2]
[405866479,1771372231619,-76.78873463,6.795e-05,2]
[405866480,1771372231653,-223.21126537,6.795e-05,2]
[405866481,1771372231663,-1200.0,6.795e-05,2]
[405866482,1771372231673,-596.47581986,6.796e-05,2]
[405866483,1771372231682,-89.95922975,6.796e-05,2]
[405866484,1771372231711,-74.67862332,6.796e-05,2]
[405866485,1771372231720,-254.77421119,6.796e-05,2]
[405866486,1771372231729,-500.0,6.796e-05,2]
[405866487,1771372231738,-500.0,6.796e-05,2]
[405866488,1771372231747,-133.27384993,6.796e-05,2]
[405866491,1771372237554,-366.72615007,6.796e-05,2]
[405866492,1771372237564,-243.2779921,6.796e-05,2]
[405866493,1771372237683,-221.51119793,6.796e-05,2]
[405866494,1771372237692,-150.0,6.796e-05,2]
[405866495,1771372237701,-300.0,6.796e-05,2]
[405866496,1771372237711,-35.04472139,6.796e-05,2]
[405866497,1771372237722,-1164.95527861,6.796e-05,2]
[405866498,1771372237731,-1603.51828415,6.797e-05,2]
[405866499,1771372237743,-27131.28553281,6.797e-05,2]
[405866500,1771372237754,-304.0,6.797e-05,2]
[405866501,1771372237766,-837.35,6.797e-05,2]
[405866506,1771372239759,-500.0,6.797e-05,2]
[405866507,1771372239771,-420.86114321,6.797e-05,2]
[405866508,1771372239781,-425.63,6.797e-05,2]
[405866509,1771372239793,-922.18333418,6.797e-05,2]
[405866510,1771372239930,-5021.90947583,6.797e-05,2]
[405866511,1771372239976,-1636.34143493,6.797e-05,2]
[405866512,1771372240122,-1587.711,6.797e-05,2]